fUST/lending_fUST_20250623
["ID","MTS","AMOUNT","RATE_DAILY","PERIOD"]
[366998632,1750609845067,-716.82,0.00021917,3]
[366998634,1750609845076,-471.21,0.00021917,3]
[366998636,1750609845086,-3212.81,0.00021917,3]
[366998638,1750609845097,-1338.73,0.00021917,3]
[366998639,1750609845106,-460.0,0.00021917,3]
[366998641,1750609845116,-460.0,0.00021917,3]
[366998643,1750609845126,-460.0,0.00021917,3]
[366998645,1750609845136,-460.0,0.00021917,3]
[366998646,1750609845146,-460.0,0.00021917,3]
[366998648,1750609845157,-460.0,0.00021917,3]
[366998650,1750609845166,-460.0,0.00021917,3]
[366998652,1750609845176,-460.0,0.00021917,3]
[366998653,1750609845187,-460.0,0.00021917,3]
[366998655,1750609845197,-460.0,0.00021917,3]
[366998657,1750609845207,-5387.39,0.00021917,3]
[366998659,1750609845216,-460.0,0.00021917,3]
[366998660,1750609845228,-460.0,0.00021917,3]
[366998662,1750609845237,-1606.07,0.00021917,3]
[366998664,1750609845246,-460.0,0.00021917,3]
[366998666,1750609845255,-460.0,0.00021917,3]
[366998667,1750609845265,-1057.34,0.00021917,3]
[366998669,1750609845275,-1491.13,0.00021917,3]
[366998671,1750609845285,-460.0,0.00021917,3]
[366998673,1750609845294,-460.0,0.00021917,3]
[366998674,1750609845303,-885.95,0.00021917,3]
[366998676,1750609845313,-460.0,0.00021917,3]
[366998678,1750609845323,-460.0,0.00021917,3]
[366998680,1750609845333,-460.0,0.00021917,3]
[366998681,1750609845343,-3520.05,0.00021917,3]
[366998683,1750609845353,-460.0,0.00021917,3]
[366998685,1750609845362,-460.0,0.00021917,3]
[366998687,1750609845372,-460.0,0.00021917,3]
[366998689,1750609845382,-1488.1,0.00021917,3]
[366998690,1750609845392,-358.88724819,0.00021917,3]
[366998692,1750609845403,-689.95,0.00021917,3]
[366998694,1750609845413,-1781.95,0.00021917,3]
[366998696,1750609845423,-3099.07,0.00021917,3]
[366998697,1750609845433,-10194.55,0.00021917,3]
[366998699,1750609845443,-460.0,0.00021917,3]
[366998701,1750609845453,-2142.11,0.00021917,3]
[366998703,1750609845462,-460.0,0.00021917,3]
[366998705,1750609845472,-456.73120801,0.00021917,3]
[366998708,1750609845482,-460.0,0.00021917,3]
[366998710,1750609845492,-460.0,0.00021917,3]
[366998712,1750609845502,-6524.14,0.00021917,3]
[366998713,1750609845511,-460.0,0.00021917,3]
[366998715,1750609845521,-460.0,0.00021917,3]
[366998718,1750609845531,-460.0,0.00021917,3]
[366998721,1750609845541,-460.0,0.00021917,3]
[366998723,1750609845550,-733.31,0.00021917,3]
[366998724,1750609845561,-460.27,0.00021917,3]
[366998726,1750609845570,-5894.06,0.00021917,3]
[366998728,1750609845580,-460.0,0.00021917,3]
[366998730,1750609845590,-460.0,0.00021917,3]
[366998731,1750609845600,-460.0,0.00021917,3]
[366998733,1750609845610,-2732.52,0.00021917,3]
[366998735,1750609845619,-460.0,0.00021917,3]
[366998737,1750609845636,-460.0,0.00021917,3]
[366998739,1750609845646,-460.0,0.00021917,3]
[366998741,1750609845656,-460.0,0.00021917,3]
[366998742,1750609845665,-460.0,0.00021917,3]
[366998744,1750609845676,-460.0,0.00021917,3]
[366998746,1750609845686,-3052.9,0.00021917,3]
[366998748,1750609845696,-460.0,0.00021917,3]
[366998750,1750609845705,-460.0,0.00021917,3]
[366998751,1750609845715,-460.0,0.00021917,3]
[366998753,1750609845724,-1037.58,0.00021917,3]
[366998755,1750609845736,-460.0,0.00021917,3]
[366998757,1750609845746,-460.0,0.00021917,3]
[366998758,1750609845756,-460.0,0.00021917,3]
[366998760,1750609845765,-569.36,0.00021917,3]
[366998762,1750609845775,-981.11,0.00021917,3]
[366998764,1750609845784,-422.09122604,0.00021917,3]
[366998765,1750609845794,-460.0,0.00021917,3]
[366998767,1750609845804,-1520.51,0.00021917,3]
[366998769,1750609845814,-936.55,0.00021917,3]
[366998771,1750609845823,-460.0,0.00021917,3]
[366998772,1750609845840,-460.0,0.00021917,3]
[366998774,1750609845849,-460.0,0.00021917,3]
[366998776,1750609845859,-460.0,0.00021917,3]
[366998778,1750609845869,-460.0,0.00021917,3]
[366998779,1750609845879,-1624.71,0.00021917,2]
[366998781,1750609845889,-460.0,0.00021917,3]
[366998783,1750609845898,-7243.85,0.00021917,3]
[366998785,1750609845908,-579.83,0.00021917,3]
[366998787,1750609845918,-400.0,0.00021918,7]
[366998788,1750609845929,-1896.56946783,0.00021934,6]
[366998790,1750609845938,-1498.0,0.00021958,2]
[366998792,1750609845948,-500.0,0.00021973,2]
[366998794,1750609845958,-500.0,0.00021973,2]
[366998795,1750609845968,-500.0,0.00021973,2]
[366998797,1750609845978,-500.0,0.00021973,2]
[366998799,1750609845988,-500.0,0.00021973,2]
[366998801,1750609845998,-372.24388495,0.00021973,2]
[366998803,1750609846008,-500.0,0.00021973,2]
[366998805,1750609846017,-500.0,0.00021973,2]
[366998806,1750609846027,-500.0,0.00021973,2]
[366998808,1750609846037,-500.0,0.00021973,2]
[366998810,1750609846053,-500.0,0.00021973,2]
[366998812,1750609846063,-500.0,0.00021973,2]
[366998814,1750609846074,-504.4273068,0.00021973,2]
[366998815,1750609846084,-500.0,0.00021973,2]
[366998817,1750609846096,-500.0,0.00021973,2]
[366998819,1750609846105,-500.0,0.00021973,2]
[366998821,1750609846116,-500.0,0.00021973,2]
[366998822,1750609846126,-500.0,0.00021973,2]
[366998824,1750609846137,-500.0,0.00021973,2]
[366998826,1750609846147,-597.79869583,0.00021973,2]
[366998828,1750609846156,-500.0,0.00021973,2]
[366998829,1750609846166,-500.0,0.00021973,2]
[366998831,1750609846175,-500.0,0.00021973,2]
[366998833,1750609846185,-500.0,0.00021973,2]
[366998835,1750609846194,-344.38170563,0.00021973,2]
[366998841,1750609846255,-504.57650229,0.00021973,2]
[366998843,1750609846264,-500.0,0.00021973,2]
[366998844,1750609846273,-500.0,0.00021973,2]
[366998846,1750609846283,-362.05087146,0.00021973,2]
[366998848,1750609846293,-500.0,0.00021973,2]
[366998850,1750609846303,-500.0,0.00021973,2]
[366998852,1750609846313,-326.2377554,0.00021973,2]
[366998853,1750609846323,-500.57114652,0.00021973,2]
[366998855,1750609846334,-611.5896609,0.00021973,2]
[366998857,1750609846344,-500.0,0.00021973,2]
[366998859,1750609846353,-500.0,0.00021973,2]
[366998861,1750609846363,-500.0,0.00021973,2]
[366998862,1750609846372,-500.0,0.00021973,2]
[366998864,1750609846382,-500.0,0.00021973,2]
[366998866,1750609846392,-504.0200472,0.00021973,2]
[366998868,1750609846401,-500.0,0.00021973,2]
[366998870,1750609846411,-500.0,0.00021973,2]
[366998872,1750609846421,-500.0,0.00021973,2]
[366998873,1750609846430,-500.0,0.00021973,2]
[366998875,1750609846440,-3809.71,0.00022,7]
[366998877,1750609846449,-87098.8,0.00022,2]
[366998879,1750609846458,-846.39664074,0.00022,7]
[366998880,1750609846468,-187.0,0.00022,2]
[366998882,1750609846478,-167.0,0.00022,2]
[366998884,1750609846489,-12551.52821599,0.00022,7]
[366998886,1750609846500,-160.0,0.00022,7]
[366998887,1750609846509,-213.59462818,0.00022,7]
[366998889,1750609846519,-265.0,0.00022,2]
[366998891,1750609846529,-500.0,0.00022012,3]
[366998893,1750609846540,-5888.0,0.00022013,2]
[366998894,1750609846550,-1498.0,0.00022027,2]
[366998896,1750609846559,-965.0,0.00022069,2]
[366998898,1750609846569,-1211.30457687,0.0002207,2]
[366998900,1750609846579,-1498.0,0.00022082,2]
[366998902,1750609846589,-1896.56946783,0.00022141,6]
[366998904,1750609846600,-500.0,0.00022173,2]
[366998906,1750609846610,-500.0,0.00022173,2]
[366998908,1750609846620,-500.0,0.00022173,2]
[366998910,1750609846630,-500.0,0.00022173,2]
[366998912,1750609846640,-500.0,0.00022173,2]
[366998914,1750609846650,-500.0,0.00022173,2]
[366998916,1750609846659,-500.0,0.00022173,2]
[366998918,1750609846670,-500.0,0.00022173,2]
[366998919,1750609846681,-500.2658602,0.00022173,2]
[366998920,1750609846691,-563.37244798,0.00022173,2]
[366998921,1750609846700,-500.0,0.0002219,3]
[366998922,1750609846710,-500.0,0.0002219,3]
[366998923,1750609846719,-500.0,0.0002219,3]
[366998924,1750609846730,-460.0,0.00022191,3]
[366998925,1750609846740,-460.0,0.00022191,3]
[366998926,1750609846750,-460.0,0.00022191,3]
[366998927,1750609846759,-692.52,0.00022191,3]
[366998928,1750609846770,-460.0,0.00022191,3]
[366998929,1750609846779,-1000.0,0.00022191,3]
[366998930,1750609846790,-460.0,0.00022191,3]
[366998931,1750609846800,-460.0,0.00022191,3]
[366998932,1750609846810,-584.17,0.00022191,3]
[366998933,1750609846820,-360.79063501,0.00022191,3]
[366998934,1750609846830,-460.0,0.00022191,3]
[366998935,1750609846839,-460.0,0.00022191,3]
[366998936,1750609846851,-460.0,0.00022191,3]
[366998937,1750609846860,-410.0,0.00022191,3]
[366998938,1750609846870,-1407.52,0.00022191,3]
[366998939,1750609846880,-460.0,0.00022191,3]
[366998940,1750609846890,-460.0,0.00022191,3]
[366998941,1750609846900,-460.0,0.00022191,3]
[366998942,1750609846909,-460.0,0.00022191,3]
[366998943,1750609846919,-948.51,0.00022191,3]
[366998944,1750609846928,-460.0,0.00022191,3]
[366998945,1750609846938,-460.0,0.00022191,3]
[366998946,1750609846948,-559.0129306,0.00022191,3]
[366998947,1750609846957,-460.0,0.00022191,3]
[366998948,1750609846967,-460.0,0.00022191,3]
[366998949,1750609846976,-460.0,0.00022191,3]
[366998950,1750609846986,-460.0,0.00022191,3]
[366998951,1750609846995,-460.0,0.00022191,3]
[366998952,1750609847005,-460.0,0.00022191,3]
[366998953,1750609847015,-274.16649072,0.00022191,3]
[366998954,1750609847024,-460.0,0.00022191,3]
[366998955,1750609847035,-460.0,0.00022191,3]
[366998956,1750609847045,-460.0,0.00022191,3]
[366998957,1750609847055,-460.0,0.00022191,3]
[366998958,1750609847064,-460.0,0.00022191,3]
[366998959,1750609847074,-460.0,0.00022191,3]
[366998960,1750609847083,-379.33988823,0.00022191,3]
[366998961,1750609847093,-460.0,0.00022191,3]
[366998962,1750609847102,-654.33,0.00022191,3]
[366998963,1750609847112,-460.0,0.00022191,3]
[366998964,1750609847123,-460.0,0.00022191,3]
[366998965,1750609847133,-460.0,0.00022191,3]
[366998966,1750609847143,-460.0,0.00022191,3]
[366998968,1750609847152,-460.0,0.00022191,3]
[366998969,1750609847161,-322.36834067,0.00022191,3]
[366998971,1750609847171,-460.0,0.00022191,3]
[366998973,1750609847180,-478.97,0.00022191,3]
[366998974,1750609847189,-460.0,0.00022191,3]
[366998975,1750609847198,-460.0,0.00022191,3]
[366998976,1750609847207,-460.0,0.00022191,3]
[366998978,1750609847216,-460.0,0.00022191,3]
[366998979,1750609847225,-354.38095449,0.00022191,3]
[366998980,1750609847235,-460.0,0.00022191,3]
[366998982,1750609847244,-460.0,0.00022191,3]
[366998984,1750609847254,-460.0,0.00022191,3]
[366998987,1750609847263,-460.0,0.00022191,3]
[366998990,1750609847272,-460.0,0.00022191,3]
[366998992,1750609847282,-460.0,0.00022191,3]
[366998996,1750609847292,-460.0,0.00022191,3]
[366998999,1750609847301,-460.0,0.00022191,3]
[366999000,1750609847310,-460.0,0.00022191,3]
[366999003,1750609847320,-464.46217809,0.00022191,3]
[366999005,1750609847329,-460.0,0.00022191,3]
[366999007,1750609847339,-460.0,0.00022191,3]
[366999008,1750609847348,-460.0,0.00022191,3]
[366999010,1750609847357,-460.0,0.00022191,3]
[366999012,1750609847367,-460.0,0.00022191,3]
[366999014,1750609847376,-460.0,0.00022191,3]
[366999016,1750609847385,-460.0,0.00022191,3]
[366999018,1750609847394,-460.0,0.00022191,3]
[366999020,1750609847404,-460.0,0.00022191,3]
[366999022,1750609847413,-460.0,0.00022191,3]
[366999024,1750609847423,-371.9588752,0.00022191,3]
[366999026,1750609847432,-460.0,0.00022191,3]
[366999028,1750609847442,-460.0,0.00022191,3]
[366999030,1750609847452,-460.0,0.00022191,3]
[366999032,1750609847462,-460.0,0.00022191,3]
[366999034,1750609847472,-510.23087786,0.00022191,3]
[366999037,1750609847483,-440.0,0.00022191,3]
[366999038,1750609847493,-460.0,0.00022191,3]
[366999040,1750609847503,-460.0,0.00022191,3]
[366999042,1750609847512,-913.5,0.00022191,3]
[366999045,1750609847522,-737.44,0.00022191,3]
[366999046,1750609847531,-541.11,0.00022191,3]
[366999048,1750609847540,-460.0,0.00022191,3]
[366999050,1750609847550,-281.3034925,0.00022191,3]
[366999052,1750609847559,-460.0,0.00022191,3]
[366999054,1750609847569,-460.0,0.00022191,3]
[366999056,1750609847578,-796.83,0.00022191,3]
[366999058,1750609847588,-460.0,0.00022191,3]
[366999060,1750609847598,-460.0,0.00022191,3]
[366999062,1750609847607,-460.0,0.00022191,3]
[366999064,1750609847617,-460.0,0.00022191,3]
[366999066,1750609847626,-460.0,0.00022191,3]
[366999068,1750609847635,-460.0,0.00022191,3]
[366999070,1750609847645,-460.0,0.00022191,3]
[366999072,1750609847655,-460.0,0.00022191,3]
[366999074,1750609847664,-460.0,0.00022191,3]
[366999076,1750609847675,-460.0,0.00022191,3]
[366999078,1750609847685,-437.98071053,0.00022191,3]
[366999080,1750609847694,-460.0,0.00022191,3]
[366999082,1750609847704,-460.0,0.00022191,3]
[366999084,1750609847714,-460.0,0.00022191,3]
[366999086,1750609847724,-478.5894582,0.00022191,3]
[366999088,1750609847734,-460.0,0.00022191,3]
[366999090,1750609847743,-511.21702967,0.00022191,3]
[366999092,1750609847753,-460.0,0.00022191,3]
[366999094,1750609847762,-2185.79,0.00022191,3]
[366999096,1750609847771,-460.0,0.00022191,3]
[366999098,1750609847780,-966.5,0.00022191,3]
[366999100,1750609847789,-566.45145495,0.00022191,3]
[366999102,1750609847799,-1644.07,0.00022191,3]
[366999104,1750609847808,-460.0,0.00022191,3]
[366999106,1750609847817,-460.0,0.00022191,3]
[366999108,1750609847827,-608.71,0.00022191,3]
[366999110,1750609847836,-460.0,0.00022191,3]
[366999112,1750609847846,-460.0,0.00022191,3]
[366999114,1750609847855,-460.0,0.00022191,3]
[366999116,1750609847865,-440.0,0.00022191,3]
[366999118,1750609847874,-460.0,0.00022191,3]
[366999120,1750609847883,-460.0,0.00022191,3]
[366999122,1750609847892,-669.84,0.00022191,3]
[366999124,1750609847902,-460.0,0.00022191,3]
[366999126,1750609847912,-990.4,0.00022191,3]
[366999128,1750609847921,-460.0,0.00022191,3]
[366999130,1750609847930,-956.67,0.00022191,3]
[366999133,1750609847940,-460.0,0.00022191,3]
[366999134,1750609847950,-460.0,0.00022191,3]
[366999137,1750609847960,-460.0,0.00022191,3]
[366999138,1750609847969,-945.14,0.00022191,3]
[366999140,1750609847979,-460.0,0.00022191,3]
[366999142,1750609847988,-447.33085712,0.00022191,3]
[366999144,1750609847998,-1316.31,0.00022191,3]
[366999147,1750609848008,-460.0,0.00022191,3]
[366999149,1750609848018,-460.0,0.00022191,3]
[366999151,1750609848028,-460.0,0.00022191,3]
[366999153,1750609848037,-617.19,0.00022191,3]
[366999154,1750609848048,-460.0,0.00022191,3]
[366999156,1750609848058,-460.0,0.00022191,3]
[366999158,1750609848067,-460.0,0.00022191,3]
[366999160,1750609848076,-460.0,0.00022191,3]
[366999162,1750609848085,-869.55,0.00022191,3]
[366999164,1750609848096,-460.0,0.00022191,3]
[366999166,1750609848105,-460.0,0.00022191,3]
[366999168,1750609848115,-460.0,0.00022191,3]
[366999171,1750609848125,-373.40046115,0.00022191,3]
[366999173,1750609848135,-460.0,0.00022191,3]
[366999174,1750609848144,-460.0,0.00022191,3]
[366999177,1750609848154,-460.0,0.00022191,3]
[366999178,1750609848164,-460.0,0.00022191,3]
[366999180,1750609848173,-460.0,0.00022191,3]
[366999183,1750609848183,-460.0,0.00022191,3]
[366999184,1750609848192,-215.40336218,0.00022191,3]
[366999186,1750609848201,-341.33750378,0.00022191,3]
[366999188,1750609848210,-1023.64,0.00022191,3]
[366999191,1750609848221,-460.0,0.00022191,3]
[366999192,1750609848231,-460.0,0.00022191,3]
[366999194,1750609848240,-1270.26,0.00022191,3]
[366999197,1750609848250,-318.32314405,0.00022191,3]
[366999199,1750609848260,-460.0,0.00022191,3]
[366999200,1750609848269,-460.0,0.00022191,3]
[366999202,1750609848278,-460.0,0.00022191,3]
[366999204,1750609848288,-460.0,0.00022191,3]
[366999206,1750609848297,-460.0,0.00022191,3]
[366999209,1750609848306,-686.74,0.00022191,3]
[366999210,1750609848316,-460.0,0.00022191,3]
[366999212,1750609848326,-460.0,0.00022191,3]
[366999214,1750609848336,-436.91018953,0.00022191,3]
[366999216,1750609848345,-460.0,0.00022191,3]
[366999218,1750609848355,-460.0,0.00022191,3]
[366999221,1750609848365,-460.0,0.00022191,3]
[366999223,1750609848374,-460.0,0.00022191,3]
[366999225,1750609848383,-460.0,0.00022191,3]
[366999226,1750609848393,-460.0,0.00022191,3]
[366999229,1750609848402,-1009.97,0.00022191,3]
[366999230,1750609848412,-513.47626026,0.00022191,3]
[366999232,1750609848422,-731.72,0.00022191,3]
[366999235,1750609848431,-419.93815168,0.00022191,3]
[366999237,1750609848441,-460.0,0.00022191,3]
[366999239,1750609848451,-893.36,0.00022191,3]
[366999241,1750609848461,-460.0,0.00022191,3]
[366999243,1750609848470,-460.0,0.00022191,3]
[366999245,1750609848481,-330.88181658,0.00022191,3]
[366999247,1750609848490,-460.0,0.00022191,3]
[366999249,1750609848500,-460.0,0.00022191,3]
[366999251,1750609848510,-460.0,0.00022191,3]
[366999253,1750609848519,-835.92,0.00022191,3]
[366999255,1750609848529,-336.72010394,0.00022191,3]
[366999257,1750609848539,-460.0,0.00022191,3]
[366999259,1750609848550,-460.0,0.00022191,3]
[366999261,1750609848561,-460.0,0.00022191,3]
[366999263,1750609848572,-460.0,0.00022191,3]
[366999265,1750609848582,-460.0,0.00022191,3]
[366999267,1750609848593,-411.0,0.00022191,3]
[366999269,1750609848603,-521.2539877,0.00022191,3]
[366999271,1750609848612,-460.0,0.00022191,3]
[366999273,1750609848623,-276.8998207,0.00022191,3]
[366999275,1750609848632,-460.0,0.00022191,3]
[366999277,1750609848642,-460.0,0.00022191,3]
[366999279,1750609848651,-460.0,0.00022191,3]
[366999281,1750609848661,-460.0,0.00022191,3]
[366999283,1750609848671,-460.0,0.00022191,3]
[366999285,1750609848681,-460.0,0.00022191,3]
[366999287,1750609848690,-460.0,0.00022191,3]
[366999289,1750609848700,-460.0,0.00022191,3]
[366999291,1750609848709,-460.0,0.00022191,3]
[366999293,1750609848719,-619.98,0.00022191,3]
[366999295,1750609848730,-460.0,0.00022191,3]
[366999297,1750609848740,-1210.37,0.00022191,3]
[366999299,1750609848750,-500.0,0.00022191,3]
[366999301,1750609848761,-460.0,0.00022191,3]
[366999303,1750609848770,-460.0,0.00022191,3]
[366999305,1750609848781,-460.0,0.00022191,3]
[366999307,1750609848791,-460.0,0.00022191,3]
[366999309,1750609848801,-460.0,0.00022191,3]
[366999311,1750609848810,-460.0,0.00022191,3]
[366999313,1750609848820,-460.0,0.00022191,3]
[366999315,1750609848830,-460.73377086,0.00022191,3]
[366999317,1750609848839,-460.0,0.00022191,3]
[366999319,1750609848850,-1525.47,0.00022191,3]
[366999321,1750609848859,-460.0,0.00022191,3]
[366999323,1750609848869,-460.0,0.00022191,3]
[366999325,1750609848879,-503.52,0.00022191,3]
[366999327,1750609848889,-460.0,0.00022191,3]
[366999329,1750609848899,-460.0,0.00022191,3]
[366999331,1750609848909,-460.0,0.00022191,3]
[366999333,1750609848919,-460.0,0.00022191,3]
[366999335,1750609848929,-460.0,0.00022191,3]
[366999336,1750609848939,-460.0,0.00022191,3]
[366999338,1750609848950,-460.0,0.00022191,3]
[366999340,1750609848960,-460.0,0.00022191,3]
[366999342,1750609848970,-339.49131659,0.00022191,3]
[366999434,1750609849893,-120.50868341,0.00022191,3]
[366999436,1750609849902,-95.92878456,0.00022191,3]
[366999506,1750609851628,-164.15926043,0.00022191,3]
[366999508,1750609851803,-460.0,0.00021917,3]
[366999509,1750609851813,-460.0,0.00021917,3]
[366999510,1750609851822,-199.91195501,0.00022191,3]
[366999511,1750609851831,-793.32314403,0.00022191,3]
[366999525,1750609853062,-500.0,0.00020976,2]
[366999526,1750609853072,-500.0,0.00020976,2]
[366999527,1750609853081,-423.48206686,0.00021917,3]
[366999528,1750609853091,-229.18227436,0.00021917,3]
[366999529,1750609853100,-460.0,0.00021917,3]
[366999530,1750609853109,-7013.67,0.00021917,3]
[366999531,1750609853119,-552.52605129,0.00021917,3]
[366999533,1750609853129,-941.79,0.00021917,3]
[366999534,1750609853138,-460.0,0.00021917,3]
[366999535,1750609853147,-181.46560641,0.00021917,3]
[366999536,1750609853156,-460.0,0.00021917,3]
[366999537,1750609853165,-80.25685597,0.00022191,3]
[366999538,1750609853174,-293.63421466,0.00022191,3]
[366999539,1750609853184,-301.52955287,0.00022191,3]
[366999540,1750609853193,-460.0,0.00022191,3]
[366999541,1750609853202,-460.0,0.00022191,3]
[366999542,1750609853212,-460.0,0.00022191,3]
[366999543,1750609853221,-460.0,0.00022191,3]
[366999544,1750609853230,-908.46,0.00022191,3]
[366999545,1750609853241,-492.02,0.00022191,3]
[366999546,1750609853251,-460.0,0.00022191,3]
[366999547,1750609853260,-460.0,0.00022191,3]
[366999548,1750609853270,-1044.35,0.00022191,3]
[366999549,1750609853280,-1662.98,0.00022191,3]
[366999550,1750609853289,-460.0,0.00022191,3]
[366999551,1750609853299,-6678.49,0.00022191,3]
[366999552,1750609853309,-460.0,0.00022191,3]
[366999553,1750609853319,-460.0,0.00022191,3]
[366999554,1750609853328,-1367.09,0.00022191,3]
[366999555,1750609853338,-812.48,0.00022191,3]
[366999556,1750609853348,-460.0,0.00022191,3]
[366999557,1750609853358,-460.0,0.00022191,3]
[366999558,1750609853368,-596.3755632,0.00022191,3]
[366999559,1750609853378,-601.52,0.00022191,3]
[366999560,1750609853388,-1127.7,0.00022191,3]
[366999561,1750609853398,-460.0,0.00022191,3]
[366999562,1750609853408,-460.0,0.00022191,3]
[366999563,1750609853418,-460.0,0.00022191,3]
[366999564,1750609853427,-460.0,0.00022191,3]
[366999565,1750609853437,-460.0,0.00022191,3]
[366999566,1750609853446,-460.0,0.00022191,3]
[366999567,1750609853455,-1168.87,0.00022191,3]
[366999568,1750609853465,-460.0,0.00022191,3]
[366999569,1750609853475,-911.5,0.00022191,3]
[366999570,1750609853484,-460.0,0.00022191,3]
[366999571,1750609853496,-460.0,0.00022191,3]
[366999572,1750609853505,-822.66,0.00022191,3]
[366999573,1750609853514,-684.28,0.00022191,3]
[366999574,1750609853524,-2803.29,0.00022191,3]
[366999575,1750609853534,-162.21852995,0.00022191,3]
[366999576,1750609853544,-460.0,0.00022191,3]
[366999577,1750609853554,-758.14,0.00022191,3]
[366999578,1750609853563,-460.0,0.00022191,3]
[366999579,1750609853573,-460.0,0.00022191,3]
[366999580,1750609853582,-460.0,0.00022191,3]
[366999581,1750609853592,-460.0,0.00022191,3]
[366999582,1750609853602,-1418.57,0.00022191,3]
[366999583,1750609853612,-460.0,0.00022191,3]
[366999584,1750609853621,-571.15,0.00022191,3]
[366999585,1750609853631,-1100.74,0.00022191,3]
[366999586,1750609853640,-460.0,0.00022191,3]
[366999587,1750609853650,-460.0,0.00022191,3]
[366999588,1750609853659,-460.0,0.00022191,3]
[366999589,1750609853668,-460.0,0.00022191,3]
[366999590,1750609853677,-460.0,0.00022191,3]
[366999591,1750609853687,-768.79,0.00022191,3]
[366999592,1750609853696,-460.0,0.00022191,3]
[366999593,1750609853705,-460.0,0.00022191,3]
[366999594,1750609853714,-1852.4,0.00022191,3]
[366999595,1750609853724,-460.0,0.00022191,3]
[366999596,1750609853734,-571.93,0.00022191,3]
[366999597,1750609853746,-2759.83,0.00022191,3]
[366999598,1750609853755,-460.0,0.00022191,3]
[366999599,1750609853765,-460.0,0.00022191,3]
[366999600,1750609853775,-169.59,0.00022191,3]
[366999601,1750609853784,-460.0,0.00022191,3]
[366999602,1750609853794,-460.0,0.00022191,3]
[366999603,1750609853805,-559.58947715,0.00022191,3]
[366999604,1750609853814,-1473.19,0.00022191,3]
[366999605,1750609853824,-690.42,0.00022191,3]
[366999606,1750609853833,-460.0,0.00022191,3]
[366999607,1750609853843,-4805.06,0.00022191,3]
[366999608,1750609853853,-580.56,0.00022191,3]
[366999609,1750609853862,-460.0,0.00022191,3]
[366999610,1750609853872,-4509.88,0.00022191,3]
[366999611,1750609853881,-460.0,0.00022191,3]
[366999612,1750609853891,-838.97,0.00022191,3]
[366999613,1750609853900,-358.54375086,0.00022191,3]
[366999614,1750609853910,-353.62984601,0.00022191,3]
[366999615,1750609853919,-3079.99,0.00022191,3]
[366999616,1750609853929,-460.0,0.00022191,3]
[366999617,1750609853938,-786.61,0.00022191,3]
[366999618,1750609853947,-478.16,0.00022191,3]
[366999619,1750609853957,-460.0,0.00022191,3]
[366999620,1750609853967,-472.4664635,0.00022191,3]
[366999621,1750609853976,-460.0,0.00022191,3]
[366999622,1750609853987,-517.57,0.00022191,3]
[366999623,1750609853996,-500.0,0.00022191,3]
[366999624,1750609854006,-460.0,0.00022191,3]
[366999625,1750609854016,-460.0,0.00022191,3]